{"text_format":"1","workbook":"xlsx","n_sheets":1,"sheets":["CO Log"],"not_rendered":{"charts":0,"images":1,"macros":1,"external_links":0,"defined_names":1,"comments":1,"pivot_tables":0},"unopened":[],"bounds":{"document_bytes":16777216,"sheet_cells":100000,"rows_first":2000,"rows_last":500,"rows_between":2000,"halvings":0,"cell_chars":16384,"cell_head_chars":4096},"cells_cut":0,"cells_raw":0,"read":"whole","date_system":"1900"}

{"sheet":"CO Log","index":0,"n_rows":23,"n_cols":7,"rows_kept":23,"cut":false,"hidden":false,"merged":[[4,0,4,2],[4,4,4,5],[0,0,0,6],[1,0,1,6],[3,4,3,5],[3,0,3,2],[2,0,2,2],[2,4,2,5]]}
["Contract Change Order Log"]
[]
["Project Name:",null,null,null,"Contractor:"]
["Region Contract No.:",null,null,null,"Date:",null,{"$f":"TODAY()","v":"2024-06-21"}]
["Region Project Manager:",null,null,null,"CA Projet Manager:"]
["CO #","RFQ #","CO Date","Description","Total","Accumulated Total ","Contingency Balance"]
[null,null,null,"Initial Project Contingency (from Tender)"]
[null,null,null,null,null,{"$f":"E8+F7","v":0},{"$f":"$G$7-F8","v":0}]
[null,null,null,null,null,{"$f":"E9+F8","v":0},{"$f":"$G$7-F9","v":0}]
[null,null,null,null,null,{"$f":"E10+F9","v":0},0]
[null,null,null,null,null,0,0]
[null,null,null,null,null,0,0]
[null,null,null,null,null,0,0]
[null,null,null,null,null,0,0]
[null,null,null,null,null,0,0]
[null,null,null,null,null,0,0]
[null,null,null,null,null,0,0]
[null,null,null,null,null,0,0]
[null,null,null,null,null,0,0]
[null,null,null,null,null,0,0]
[null,null,null,null,null,0,0]
[null,null,null,null,null,{"$f":"E22+F21","v":0},0]
[null,null,null,null,null,{"$f":"E23+F22","v":0},0]